[Event "*** Titled Tuesday Blitz"]
[Site "Chess.com"]
[Date "2020.05.26"]
[Round "6"]
[White "tigra"]
[Black "pollo2016"]
[Result "1-0"]
[WhiteElo "2756"]
[BlackElo "2578"]
[TimeControl "180+1"]
[EndTime "11:09:38 PDT"]
[Termination "tigra won on time"]

1. e4 {[%clk 0:03:00.9]} 1... c6 {[%clk 0:02:59.4]} 2. d3 {[%clk 0:02:57.2]}
2... g6 {[%clk 0:02:58.4]} 3. Nd2 {[%clk 0:02:58.1]} 3... d5 {[%clk 0:02:57.3]}
4. Ngf3 {[%clk 0:02:57.2]} 4... Bg7 {[%clk 0:02:56.8]} 5. h3 {[%clk 0:02:48.7]}
5... e5 {[%clk 0:02:56.3]} 6. c3 {[%clk 0:02:43.8]} 6... Ne7 {[%clk 0:02:55.8]}
7. Qe2 {[%clk 0:02:43]} 7... O-O {[%clk 0:02:53.4]} 8. g4 {[%clk 0:02:43.1]}
8... a5 {[%clk 0:02:42.2]} 9. a4 {[%clk 0:02:42.3]} 9... Na6 {[%clk 0:02:36.8]}
10. exd5 {[%clk 0:02:37.2]} 10... Nxd5 {[%clk 0:02:35.8]} 11. Nc4 {[%clk
0:02:37.5]} 11... Nf4 {[%clk 0:02:27.3]} 12. Bxf4 {[%clk 0:02:37.1]} 12... exf4
{[%clk 0:02:27.2]} 13. O-O-O {[%clk 0:02:37.7]} 13... Re8 {[%clk 0:02:21.5]} 14.
Qc2 {[%clk 0:02:33.8]} 14... b5 {[%clk 0:02:20.7]} 15. Ncd2 {[%clk 0:02:34.2]}
15... b4 {[%clk 0:01:59.7]} 16. d4 {[%clk 0:02:33.4]} 16... bxc3 {[%clk
0:01:54.9]} 17. bxc3 {[%clk 0:02:34.3]} 17... Be6 {[%clk 0:01:34.1]} 18. Re1
{[%clk 0:02:15.4]} 18... Qd6 {[%clk 0:01:28.6]} 19. Bxa6 {[%clk 0:02:07.2]}
19... Rxa6 {[%clk 0:01:22.3]} 20. Ng5 {[%clk 0:02:05.7]} 20... Qa3+ {[%clk
0:00:57]} 21. Qb2 {[%clk 0:02:05.6]} 21... Qxa4 {[%clk 0:00:55.4]} 22. Nxe6
{[%clk 0:02:04.1]} 22... fxe6 {[%clk 0:00:55.6]} 23. Re4 {[%clk 0:01:39.4]}
23... c5 {[%clk 0:00:29.8]} 24. dxc5 {[%clk 0:01:34.5]} 24... Qc6 {[%clk
0:00:29.6]} 25. Qa3 {[%clk 0:01:28.7]} 25... Rc8 {[%clk 0:00:25.2]} 26. Kc2
{[%clk 0:01:20]} 26... Qxc5 {[%clk 0:00:25.3]} 27. Qxc5 {[%clk 0:01:20.1]} 27...
Rxc5 {[%clk 0:00:26.2]} 28. c4 {[%clk 0:01:21]} 28... a4 {[%clk 0:00:26.6]} 29.
Rb1 {[%clk 0:00:51.2]} 29... Rc8 {[%clk 0:00:26.6]} 30. Nf3 {[%clk 0:00:18.1]}
30... a3 {[%clk 0:00:25.9]} 31. Ne5 {[%clk 0:00:17.4]} 31... Bxe5 {[%clk
0:00:24]} 32. Rxe5 {[%clk 0:00:16.8]} 32... a2 {[%clk 0:00:24.3]} 33. Ra1 {[%clk
0:00:16.9]} 33... Rxc4+ {[%clk 0:00:24.8]} 34. Kb3 {[%clk 0:00:17.4]} 34... Rc8
{[%clk 0:00:22.3]} 35. Rb5 {[%clk 0:00:17.6]} 35... Rd8 {[%clk 0:00:18.8]} 36.
g5 {[%clk 0:00:14.5]} 36... Rd3+ {[%clk 0:00:18.5]} 37. Kc4 {[%clk 0:00:14.9]}
37... Rf3 {[%clk 0:00:19.1]} 38. Rb8+ {[%clk 0:00:13.3]} 38... Kf7 {[%clk
0:00:18.8]} 39. Rb7+ {[%clk 0:00:14.2]} 39... Kf8 {[%clk 0:00:19.5]} 40. Rd1
{[%clk 0:00:13.5]} 40... Ra8 {[%clk 0:00:17.5]} 41. Ra1 {[%clk 0:00:12.7]} 41...
Rxf2 {[%clk 0:00:16.9]} 42. Kd4 {[%clk 0:00:13.4]} 42... f3 {[%clk 0:00:15.9]}
43. Ke5 {[%clk 0:00:13.3]} 43... Re2+ {[%clk 0:00:15.4]} 44. Kf6 {[%clk
0:00:13.5]} 44... f2 {[%clk 0:00:15.7]} 45. Rxh7 {[%clk 0:00:10.6]} 45... Kg8
{[%clk 0:00:14.4]} 46. Kxg6 {[%clk 0:00:10.2]} 46... Re1 {[%clk 0:00:10.8]} 47.
Rg7+ {[%clk 0:00:08.4]} 47... Kh8 {[%clk 0:00:10.9]} 48. Rh7+ {[%clk 0:00:08.6]}
48... Kg8 {[%clk 0:00:11.2]} 49. Rg7+ {[%clk 0:00:09.2]} 49... Kf8 {[%clk
0:00:10.5]} 50. Rf7+ {[%clk 0:00:07.9]} 50... Ke8 {[%clk 0:00:10.8]} 51. Rxf2
{[%clk 0:00:03.9]} 51... Rxa1 {[%clk 0:00:10.2]} 52. Kg7 {[%clk 0:00:04.8]}
52... Rg1 {[%clk 0:00:08]} 53. Rf8+ {[%clk 0:00:04.6]} 53... Ke7 {[%clk
0:00:06.1]} 54. Rxa8 {[%clk 0:00:05.5]} 54... Kd6 {[%clk 0:00:06.2]} 55. Rxa2
{[%clk 0:00:03.8]} 55... Rxg5+ {[%clk 0:00:06.8]} 56. Kf6 {[%clk 0:00:04.3]}
56... Rh5 {[%clk 0:00:06.4]} 57. Rd2+ {[%clk 0:00:04.6]} 57... Kc7 {[%clk
0:00:06.1]} 58. Rh2 {[%clk 0:00:05.5]} 58... Kd6 {[%clk 0:00:04.8]} 59. h4
{[%clk 0:00:06]} 59... e5 {[%clk 0:00:04.5]} 60. Kg6 {[%clk 0:00:05.9]} 60...
Rh8 {[%clk 0:00:04.6]} 61. h5 {[%clk 0:00:06.5]} 61... e4 {[%clk 0:00:04.3]} 62.
h6 {[%clk 0:00:06.7]} 62... Ke5 {[%clk 0:00:01.1]} 63. h7 {[%clk 0:00:06.2]}
63... e3 {[%clk 0:00:00.5]} 64. Rh4 {[%clk 0:00:04.2]} 1-0

[Event "*** Titled Tuesday Blitz"]
[Site "Chess.com"]
[Date "2020.05.26"]
[Round "6"]
[White "JosefineHeinemann"]
[Black "Shield12"]
[Result "1-0"]
[WhiteElo "2522"]
[BlackElo "2792"]
[TimeControl "180+1"]
[EndTime "11:09:42 PDT"]
[Termination "JosefineHeinemann won by resignation"]

1. e4 {[%clk 0:03:00.9]} 1... c5 {[%clk 0:02:59.7]} 2. Nf3 {[%clk 0:03:00.1]}
2... Nc6 {[%clk 0:02:59.8]} 3. d4 {[%clk 0:02:57.4]} 3... cxd4 {[%clk
0:03:00.7]} 4. Nxd4 {[%clk 0:02:58.3]} 4... Nf6 {[%clk 0:03:00.9]} 5. Nc3 {[%clk
0:02:57.7]} 5... d6 {[%clk 0:03:01.4]} 6. f3 {[%clk 0:02:56.9]} 6... e6 {[%clk
0:03:00.7]} 7. Be3 {[%clk 0:02:56.5]} 7... Be7 {[%clk 0:02:59.6]} 8. Qd2 {[%clk
0:02:56.9]} 8... a6 {[%clk 0:02:59.5]} 9. O-O-O {[%clk 0:02:56.8]} 9... Nxd4
{[%clk 0:02:59.2]} 10. Bxd4 {[%clk 0:02:56]} 10... b5 {[%clk 0:02:56.9]} 11. Kb1
{[%clk 0:02:56.4]} 11... b4 {[%clk 0:02:56.2]} 12. Na4 {[%clk 0:02:54.1]} 12...
Rb8 {[%clk 0:02:52.9]} 13. Qf2 {[%clk 0:02:54]} 13... d5 {[%clk 0:02:37.8]} 14.
e5 {[%clk 0:02:52.9]} 14... Nd7 {[%clk 0:02:36.7]} 15. f4 {[%clk 0:02:49.9]}
15... Qc7 {[%clk 0:02:34.9]} 16. Bd3 {[%clk 0:02:33.2]} 16... Bb7 {[%clk
0:02:34.5]} 17. Nb6 {[%clk 0:02:30.8]} 17... Nc5 {[%clk 0:02:31.4]} 18. f5
{[%clk 0:02:16.9]} 18... Qxb6 {[%clk 0:02:29.7]} 19. fxe6 {[%clk 0:02:16.1]}
19... fxe6 {[%clk 0:02:21.1]} 20. Qf3 {[%clk 0:02:12.5]} 20... Qc7 {[%clk
0:02:09.1]} 21. Qg4 {[%clk 0:01:37.7]} 21... Nxd3 {[%clk 0:02:05.7]} 22. Qxg7
{[%clk 0:01:34.6]} 22... Kd7 {[%clk 0:01:59.1]} 23. cxd3 {[%clk 0:01:31.4]}
23... Rbg8 {[%clk 0:01:38]} 24. Qf7 {[%clk 0:01:27.4]} 24... Rf8 {[%clk
0:01:37.8]} 25. Qh5 {[%clk 0:01:23.5]} 25... Qa5 {[%clk 0:01:26.8]} 26. Qh3
{[%clk 0:01:16.9]} 26... b3 {[%clk 0:01:22.8]} 27. axb3 {[%clk 0:01:14.9]} 27...
Bc6 {[%clk 0:01:22.5]} 28. Rc1 {[%clk 0:01:11.7]} 28... Bb5 {[%clk 0:01:19.6]}
29. Rc3 {[%clk 0:01:08.6]} 29... Bb4 {[%clk 0:00:58.4]} 30. Rc2 {[%clk
0:01:04.8]} 30... Rc8 {[%clk 0:00:54.1]} 31. Rhc1 {[%clk 0:01:04.7]} 31... Rxc2
{[%clk 0:00:53.5]} 32. Rxc2 {[%clk 0:01:04]} 32... Be7 {[%clk 0:00:52.2]} 33.
Rc3 {[%clk 0:01:02.8]} 33... Qb4 {[%clk 0:00:48.4]} 34. Bb6 {[%clk 0:01:02.6]}
34... Bc6 {[%clk 0:00:42.1]} 35. Rxc6 {[%clk 0:00:58.5]} 35... Kxc6 {[%clk
0:00:41.8]} 36. Qxe6+ {[%clk 0:00:59]} 36... Kb7 {[%clk 0:00:41.8]} 37. Be3
{[%clk 0:00:52.8]} 37... Rc8 {[%clk 0:00:24.4]} 38. Qd7+ {[%clk 0:00:49.4]}
38... Rc7 {[%clk 0:00:24.7]} 39. Qxd5+ {[%clk 0:00:48.9]} 39... Kb8 {[%clk
0:00:24.9]} 40. Qg8+ {[%clk 0:00:41.4]} 40... Rc8 {[%clk 0:00:25]} 41. Qxh7
{[%clk 0:00:41.8]} 41... Qe1+ {[%clk 0:00:24]} 42. Ka2 {[%clk 0:00:37.9]} 42...
Qa5+ {[%clk 0:00:23.7]} 43. Kb1 {[%clk 0:00:36.1]} 43... Qe1+ {[%clk 0:00:24.6]}
44. Ka2 {[%clk 0:00:35.8]} 44... Bc5 {[%clk 0:00:19.8]} 45. Bf4 {[%clk
0:00:32.4]} 45... Qa5+ {[%clk 0:00:18.6]} 46. Kb1 {[%clk 0:00:31.2]} 46... Qc7
{[%clk 0:00:18.6]} 47. Qe4 {[%clk 0:00:26.4]} 47... Qc6 {[%clk 0:00:19]} 48. e6+
{[%clk 0:00:22.3]} 48... Kb7 {[%clk 0:00:19.1]} 49. Qe5 {[%clk 0:00:16.8]} 49...
Be7 {[%clk 0:00:19.1]} 50. g4 {[%clk 0:00:14.3]} 50... Qc2+ {[%clk 0:00:16.8]}
51. Ka2 {[%clk 0:00:14.7]} 51... Qc5 {[%clk 0:00:17.1]} 52. Qe4+ {[%clk
0:00:13.9]} 52... Rc6 {[%clk 0:00:17.2]} 53. d4 {[%clk 0:00:11.6]} 53... Qb4
{[%clk 0:00:16]} 54. Qd5 {[%clk 0:00:09.9]} 54... Bd6 {[%clk 0:00:12.3]} 55. e7
{[%clk 0:00:08.5]} 55... Bxe7 {[%clk 0:00:12.4]} 56. Qd7+ {[%clk 0:00:06.1]}
56... Kb6 {[%clk 0:00:12.5]} 57. d5 {[%clk 0:00:06.7]} 57... Rf6 {[%clk
0:00:09.7]} 58. Be3+ {[%clk 0:00:05.6]} 58... Bc5 {[%clk 0:00:08.4]} 59. Qd8+
{[%clk 0:00:06]} 59... Kb7 {[%clk 0:00:07.7]} 60. Bxc5 {[%clk 0:00:06.4]} 60...
Qxc5 {[%clk 0:00:07.7]} 61. Qxf6 {[%clk 0:00:06.8]} 61... Qxd5 {[%clk 0:00:08]}
62. Qg7+ {[%clk 0:00:06.4]} 62... Kb6 {[%clk 0:00:08]} 63. Qf6+ {[%clk
0:00:06.8]} 63... Kb7 {[%clk 0:00:08.5]} 64. Qf5 {[%clk 0:00:07.1]} 64... Qd4
{[%clk 0:00:08.2]} 65. g5 {[%clk 0:00:07.6]} 65... a5 {[%clk 0:00:08.2]} 66. g6
{[%clk 0:00:08.1]} 66... a4 {[%clk 0:00:08.3]} 67. Qf3+ {[%clk 0:00:08.3]} 67...
Ka7 {[%clk 0:00:07]} 68. Qf7+ {[%clk 0:00:07.8]} 68... Ka6 {[%clk 0:00:07.5]}
69. g7 {[%clk 0:00:08.7]} 69... axb3+ {[%clk 0:00:07.4]} 70. Qxb3 {[%clk
0:00:09.2]} 70... Qxg7 {[%clk 0:00:07.3]} 71. h4 {[%clk 0:00:09.4]} 71... Qh6
{[%clk 0:00:06.9]} 72. Qa4+ {[%clk 0:00:09.1]} 72... Kb6 {[%clk 0:00:06.9]} 73.
Qg4 {[%clk 0:00:10]} 73... Qh8 {[%clk 0:00:05.8]} 74. h5 {[%clk 0:00:10.5]}
74... Qa8+ {[%clk 0:00:05.7]} 75. Kb3 {[%clk 0:00:10.1]} 75... Qd5+ {[%clk
0:00:05.6]} 76. Kc3 {[%clk 0:00:10.7]} 76... Qc5+ {[%clk 0:00:05.6]} 77. Kd3
{[%clk 0:00:11.1]} 77... Qd5+ {[%clk 0:00:06]} 78. Qd4+ {[%clk 0:00:09.7]} 78...
Qxd4+ {[%clk 0:00:02.1]} 79. Kxd4 {[%clk 0:00:10.6]} 1-0

[Event "*** Titled Tuesday Blitz"]
[Site "Chess.com"]
[Date "2020.05.26"]
[Round "6"]
[White "kingnb"]
[Black "GMNickPert"]
[Result "1-0"]
[WhiteElo "2490"]
[BlackElo "2671"]
[TimeControl "180+1"]
[EndTime "11:09:49 PDT"]
[Termination "kingnb won on time"]

1. e4 {[%clk 0:03:00]} 1... c5 {[%clk 0:03:00]} 2. Nf3 {[%clk 0:03:00.4]} 2...
Nc6 {[%clk 0:03:00.6]} 3. c3 {[%clk 0:03:00.1]} 3... Nf6 {[%clk 0:03:00.2]} 4.
e5 {[%clk 0:02:59.7]} 4... Nd5 {[%clk 0:03:00.7]} 5. d4 {[%clk 0:03:00.6]} 5...
cxd4 {[%clk 0:03:01.2]} 6. cxd4 {[%clk 0:03:00]} 6... d6 {[%clk 0:03:00.9]} 7.
Bc4 {[%clk 0:02:59.5]} 7... dxe5 {[%clk 0:03:00.8]} 8. dxe5 {[%clk 0:02:53]}
8... Ndb4 {[%clk 0:03:00.1]} 9. Qxd8+ {[%clk 0:02:53.9]} 9... Nxd8 {[%clk
0:03:00.5]} 10. Na3 {[%clk 0:02:54.8]} 10... Be6 {[%clk 0:02:53.5]} 11. O-O
{[%clk 0:02:54.6]} 11... Bxc4 {[%clk 0:02:52.1]} 12. Nxc4 {[%clk 0:02:55.5]}
12... Rc8 {[%clk 0:02:49.4]} 13. b3 {[%clk 0:02:55.2]} 13... g6 {[%clk
0:02:45.8]} 14. Bd2 {[%clk 0:02:55.3]} 14... Nbc6 {[%clk 0:02:37.1]} 15. Rac1
{[%clk 0:02:51.9]} 15... Bg7 {[%clk 0:02:37.1]} 16. Rfd1 {[%clk 0:02:44.5]}
16... O-O {[%clk 0:02:36.6]} 17. Bc3 {[%clk 0:02:44.9]} 17... Ne6 {[%clk
0:02:35.9]} 18. Rd7 {[%clk 0:02:44.3]} 18... Nc5 {[%clk 0:02:33.8]} 19. Rdd1
{[%clk 0:02:43.1]} 19... Rfd8 {[%clk 0:02:32.2]} 20. g3 {[%clk 0:02:34.8]} 20...
Nd3 {[%clk 0:02:29.9]} 21. Rc2 {[%clk 0:02:22]} 21... b5 {[%clk 0:02:29.4]} 22.
Nb2 {[%clk 0:02:18.7]} 22... Ncxe5 {[%clk 0:02:09.5]} 23. Nxe5 {[%clk
0:02:11.6]} 23... Nxe5 {[%clk 0:02:02.4]} 24. Rxd8+ {[%clk 0:02:10.2]} 24...
Rxd8 {[%clk 0:02:02.4]} 25. Kg2 {[%clk 0:02:02.8]} 25... Rc8 {[%clk 0:01:53.1]}
26. Rc1 {[%clk 0:02:03.1]} 26... Ng4 {[%clk 0:01:35.7]} 27. Nd1 {[%clk
0:01:51.8]} 27... a6 {[%clk 0:01:20.7]} 28. Bb2 {[%clk 0:01:44.5]} 28... Rxc1
{[%clk 0:01:19.8]} 29. Bxc1 {[%clk 0:01:45.4]} 29... Kf8 {[%clk 0:01:18.8]} 30.
f4 {[%clk 0:01:34.1]} 30... Ke8 {[%clk 0:01:17.5]} 31. h3 {[%clk 0:01:34.7]}
31... Nf6 {[%clk 0:01:15.5]} 32. Kf3 {[%clk 0:01:35.6]} 32... Nd5 {[%clk
0:01:13.2]} 33. Bd2 {[%clk 0:01:33]} 33... Kd7 {[%clk 0:01:12.1]} 34. Nf2 {[%clk
0:01:31.3]} 34... Kc6 {[%clk 0:01:06.7]} 35. Nd3 {[%clk 0:01:29.7]} 35... e6
{[%clk 0:00:54.1]} 36. g4 {[%clk 0:01:29.5]} 36... f5 {[%clk 0:00:48.8]} 37.
gxf5 {[%clk 0:01:26.2]} 37... gxf5 {[%clk 0:00:46.1]} 38. Ba5 {[%clk 0:01:12.1]}
38... Bd4 {[%clk 0:00:44.3]} 39. Bd2 {[%clk 0:01:08.9]} 39... Kb6 {[%clk
0:00:41.9]} 40. Be1 {[%clk 0:01:07.9]} 40... a5 {[%clk 0:00:40.9]} 41. Bd2
{[%clk 0:01:05.8]} 41... a4 {[%clk 0:00:40.4]} 42. Be1 {[%clk 0:01:05]} 42... a3
{[%clk 0:00:35.9]} 43. Bb4 {[%clk 0:01:03.9]} 43... Bb2 {[%clk 0:00:19.2]} 44.
Be1 {[%clk 0:00:59]} 44... Kc6 {[%clk 0:00:16.8]} 45. Bd2 {[%clk 0:00:55.7]}
45... Bc3 {[%clk 0:00:15.4]} 46. Bc1 {[%clk 0:00:50.6]} 46... b4 {[%clk
0:00:15.4]} 47. Be3 {[%clk 0:00:50.4]} 47... Nc7 {[%clk 0:00:12.3]} 48. Bc5
{[%clk 0:00:46.9]} 48... Nd5 {[%clk 0:00:10.5]} 49. Bf8 {[%clk 0:00:41.1]} 49...
Kb5 {[%clk 0:00:09.9]} 50. Ke2 {[%clk 0:00:41.1]} 50... Bd4 {[%clk 0:00:08.9]}
51. Kf3 {[%clk 0:00:36.9]} 51... Bf6 {[%clk 0:00:08.8]} 52. Bd6 {[%clk
0:00:33.9]} 52... Be7 {[%clk 0:00:07.5]} 53. Be5 {[%clk 0:00:34.3]} 53... Bf6
{[%clk 0:00:06]} 54. Bd6 {[%clk 0:00:34]} 54... Bc3 {[%clk 0:00:06.2]} 55. Ke2
{[%clk 0:00:28.6]} 55... Bd4 {[%clk 0:00:05.4]} 56. Kf3 {[%clk 0:00:28.1]} 56...
Bb6 {[%clk 0:00:05.8]} 57. h4 {[%clk 0:00:18.4]} 57... Ba5 {[%clk 0:00:05.1]}
58. h5 {[%clk 0:00:17.5]} 58... Nc3 {[%clk 0:00:04.8]} 59. Nc1 {[%clk
0:00:17.5]} 59... Bb6 {[%clk 0:00:03.6]} 60. Be5 {[%clk 0:00:16]} 60... Nb1
{[%clk 0:00:00.7]} 61. Ke2 {[%clk 0:00:14.9]} 1-0

[Event "*** Titled Tuesday Blitz"]
[Site "Chess.com"]
[Date "2020.05.26"]
[Round "6"]
[White "ErikBlomqvist"]
[Black "AtabayevSaparmyrat"]
[Result "1-0"]
[WhiteElo "2473"]
[BlackElo "2773"]
[TimeControl "180+1"]
[EndTime "11:09:55 PDT"]
[Termination "ErikBlomqvist won by resignation"]

1. e4 {[%clk 0:03:00.9]} 1... c5 {[%clk 0:02:59.1]} 2. Nf3 {[%clk 0:03:00.1]}
2... d6 {[%clk 0:02:59.2]} 3. d4 {[%clk 0:02:59.7]} 3... cxd4 {[%clk 0:03:00.1]}
4. Qxd4 {[%clk 0:03:00.3]} 4... Nf6 {[%clk 0:02:59.4]} 5. Be2 {[%clk 0:02:59.5]}
5... Bg4 {[%clk 0:02:58.8]} 6. O-O {[%clk 0:02:55.7]} 6... Nc6 {[%clk
0:02:58.7]} 7. Qe3 {[%clk 0:02:55.7]} 7... g6 {[%clk 0:02:59]} 8. Rd1 {[%clk
0:02:50.3]} 8... Bxf3 {[%clk 0:02:47.4]} 9. Bxf3 {[%clk 0:02:49.9]} 9... Bg7
{[%clk 0:02:48.3]} 10. Nc3 {[%clk 0:02:44.5]} 10... O-O {[%clk 0:02:47.6]} 11.
Nd5 {[%clk 0:02:40.9]} 11... Nxd5 {[%clk 0:02:45.5]} 12. exd5 {[%clk 0:02:40.1]}
12... Ne5 {[%clk 0:02:45.9]} 13. Be2 {[%clk 0:02:39.6]} 13... Rc8 {[%clk
0:02:46.3]} 14. c3 {[%clk 0:02:38.3]} 14... a6 {[%clk 0:02:40.5]} 15. a4 {[%clk
0:02:21.3]} 15... Re8 {[%clk 0:02:39.3]} 16. Qf4 {[%clk 0:02:14.6]} 16... Qb6
{[%clk 0:02:35.2]} 17. h4 {[%clk 0:02:00.7]} 17... Qb3 {[%clk 0:02:28.1]} 18.
Ra3 {[%clk 0:01:57.5]} 18... Qc2 {[%clk 0:02:25.2]} 19. Qd2 {[%clk 0:01:32.3]}
19... Qxd2 {[%clk 0:02:24.1]} 20. Rxd2 {[%clk 0:01:33.2]} 20... Bh6 {[%clk
0:01:43.7]} 21. Rd1 {[%clk 0:01:32.3]} 21... Bxc1 {[%clk 0:01:44.6]} 22. Rxc1
{[%clk 0:01:32.2]} 22... Rc5 {[%clk 0:01:30.4]} 23. Rd1 {[%clk 0:01:29.2]} 23...
Nc4 {[%clk 0:01:29.5]} 24. Rb3 {[%clk 0:01:24.4]} 24... b5 {[%clk 0:01:29.3]}
25. axb5 {[%clk 0:01:24.1]} 25... axb5 {[%clk 0:01:30.2]} 26. Rb4 {[%clk
0:01:01.8]} 26... Ra8 {[%clk 0:01:24]} 27. g3 {[%clk 0:00:51.2]} 27... Ra2
{[%clk 0:01:23.3]} 28. Bxc4 {[%clk 0:00:51]} 28... bxc4 {[%clk 0:01:24.2]} 29.
Rd4 {[%clk 0:00:41.2]} 29... Kg7 {[%clk 0:01:21.5]} 30. Kg2 {[%clk 0:00:23.4]}
30... h5 {[%clk 0:01:14.2]} 31. Kf3 {[%clk 0:00:21.4]} 31... Kf6 {[%clk
0:01:09.2]} 32. Rf4+ {[%clk 0:00:20.9]} 32... Kg7 {[%clk 0:01:07.6]} 33. Rd4
{[%clk 0:00:21.1]} 33... f5 {[%clk 0:00:57]} 34. Rd2 {[%clk 0:00:16.2]} 34...
Rc7 {[%clk 0:00:50.8]} 35. Ke3 {[%clk 0:00:15.4]} 35... Kf6 {[%clk 0:00:49.3]}
36. Kd4 {[%clk 0:00:15.6]} 36... f4 {[%clk 0:00:26.7]} 37. Rxc4 {[%clk
0:00:15.2]} 37... Rxc4+ {[%clk 0:00:21]} 38. Kxc4 {[%clk 0:00:16.1]} 38... fxg3
{[%clk 0:00:21.9]} 39. fxg3 {[%clk 0:00:16.6]} 39... Kf5 {[%clk 0:00:22.5]} 40.
Re2 {[%clk 0:00:05.7]} 40... Ra7 {[%clk 0:00:22]} 41. b4 {[%clk 0:00:03.9]}
41... Kg4 {[%clk 0:00:20.8]} 42. Re3 {[%clk 0:00:04.3]} 42... Rc7+ {[%clk
0:00:21.4]} 43. Kb5 {[%clk 0:00:04.6]} 43... Rc8 {[%clk 0:00:20.1]} 44. c4
{[%clk 0:00:04.4]} 44... g5 {[%clk 0:00:19.9]} 45. hxg5 {[%clk 0:00:03.6]} 45...
Rb8+ {[%clk 0:00:19.6]} 46. Ka5 {[%clk 0:00:03.4]} 46... Ra8+ {[%clk 0:00:20.1]}
47. Kb5 {[%clk 0:00:03.7]} 47... Rc8 {[%clk 0:00:19.7]} 48. c5 {[%clk
0:00:02.5]} 48... dxc5 {[%clk 0:00:20.2]} 49. bxc5 {[%clk 0:00:03.4]} 49... Rb8+
{[%clk 0:00:21.1]} 50. Kc4 {[%clk 0:00:02.9]} 50... Ra8 {[%clk 0:00:20.8]} 51.
c6 {[%clk 0:00:03.1]} 51... Ra1 {[%clk 0:00:20.2]} 52. Kb5 {[%clk 0:00:03.1]}
52... Rb1+ {[%clk 0:00:20.3]} 53. Ka6 {[%clk 0:00:03.6]} 53... Rc1 {[%clk
0:00:20]} 54. Kb7 {[%clk 0:00:03.7]} 54... Rc3 {[%clk 0:00:20.2]} 55. c7 {[%clk
0:00:03.9]} 55... Rxe3 {[%clk 0:00:20.2]} 56. c8=Q+ {[%clk 0:00:03.9]} 56...
Kxg3 {[%clk 0:00:21.1]} 57. Qb8+ {[%clk 0:00:04.8]} 57... Kg4 {[%clk 0:00:20.5]}
58. Qc8+ {[%clk 0:00:05.1]} 58... Kxg5 {[%clk 0:00:20.1]} 59. Qg8+ {[%clk
0:00:05.1]} 59... Kf4 {[%clk 0:00:20.1]} 60. Qf7+ {[%clk 0:00:05]} 60... Kg4
{[%clk 0:00:18.4]} 61. Qg6+ {[%clk 0:00:04.7]} 61... Kh4 {[%clk 0:00:18.4]} 62.
Qf5 {[%clk 0:00:04.2]} 62... Rb3+ {[%clk 0:00:16.8]} 63. Kc6 {[%clk 0:00:04.2]}
63... Rg3 {[%clk 0:00:16.6]} 64. Qf4+ {[%clk 0:00:04]} 64... Rg4 {[%clk
0:00:16.5]} 65. Qe5 {[%clk 0:00:04.3]} 65... Rg6+ {[%clk 0:00:15]} 66. Kd7
{[%clk 0:00:03.7]} 66... Kg4 {[%clk 0:00:14.7]} 67. Kxe7 {[%clk 0:00:03.5]}
67... Rg5 {[%clk 0:00:14.5]} 68. Qe4+ {[%clk 0:00:03.8]} 68... Kg3 {[%clk
0:00:14.7]} 69. d6 {[%clk 0:00:04.1]} 69... Rg7+ {[%clk 0:00:14.8]} 70. Kf6
{[%clk 0:00:04.1]} 70... Rg4 {[%clk 0:00:15.7]} 71. Qe3+ {[%clk 0:00:03.7]}
71... Kg2 {[%clk 0:00:16.6]} 72. d7 {[%clk 0:00:04.6]} 72... Rg8 {[%clk
0:00:17.1]} 73. Qd2+ {[%clk 0:00:04.3]} 73... Kg3 {[%clk 0:00:17.3]} 74. d8=Q
{[%clk 0:00:03.9]} 74... Rxd8 {[%clk 0:00:17.1]} 75. Qxd8 {[%clk 0:00:04.8]}
75... h4 {[%clk 0:00:18]} 76. Qd6+ {[%clk 0:00:04.1]} 76... Kg2 {[%clk
0:00:18.1]} 77. Qd5+ {[%clk 0:00:04]} 77... Kg3 {[%clk 0:00:18]} 78. Qh1 {[%clk
0:00:03.6]} 78... h3 {[%clk 0:00:18.9]} 79. Kg5 {[%clk 0:00:04]} 79... h2 {[%clk
0:00:19.6]} 80. Kf5 {[%clk 0:00:04.6]} 80... Kh3 {[%clk 0:00:19.3]} 81. Ke4
{[%clk 0:00:04.6]} 1-0